[Event "Coimbra Queima Fitas Open 2024"]
[Site "Coimbra"]
[Date "2024.04.25"]
[Round "1.1"]
[White "Sousa, Andre Miguel Vale Ve"]
[Black "Silva, Tiago Oliveira Da"]
[Result "1-0"]
[ECO "B12"]
[WhiteElo "2426"]
[BlackElo "1692"]
[Annotator "TA"]
[PlyCount "45"]
[EventDate "2024.04.23"]
[EventType "swiss"]
[EventCountry "POR"]
[SourceTitle "playchess.com"]
[Source "ChessBase"]
[SourceQuality "1"]
[TimeControl "5400+30"]

{[%evp 14,45,31,20,23,19,22,0,0,-6,77,49,49,53,107,91,118,89,227,220,227,177,226,218,236,232,489,458,568,635,624,637,631,607]} 1. e4 c6 2. d4 d5 3. e5 Bf5 4. Nf3 e6 5. Be2 Nd7 6. O-O Ne7 7. c3 c5 8. dxc5 Nxc5 9. Nd4 a6 10. b4 Nd7 {The position is equal.} 11. f4 Qb6 (11... g5 $11) 12. Be3 $16 Qc7 $1 {[%cal Og7g5]} 13. g4 $36 {[%mdl 2048] White fights for an advantage.} Bxb1 (13... Be4 $14) 14. Rxb1 {And now f5 would win.} (14. Qxb1 Qxc3 15. Qc1 Rc8 $11) 14... g6 15. Rc1 {White is more active.} Nb6 {[#]} (15... Bg7 $16 {was worth a try.}) 16. f5 $1 $18 gxf5 17. gxf5 Qxe5 18. Bf4 {This pair of bishops is nice.} Rg8+ {[%cal Bh8g8,Bg8g4,Bg4f4][%mdl 32] [#]} 19. Kh1 $1 ({Don't blunder} 19. Bg4 $2 Qe4 (19... Qg7 $2 20. fxe6 Qxg4+ 21. Bg3 $19) 20. Rc2 (20. fxe6 $2 f5 $19) 20... Bh6 (20... exf5 21. Re2 $17) (20... Nxf5 $2 21. Nxf5 Rxg4+ 22. Bg3 $19) 21. fxe6 f5 $19 (21... Bxf4 $2 22. exf7+ Kxf7 23. Rxf4+ Qxf4 24. Rf2 $18) (21... fxe6 22. Nxe6 Bxf4 23. Nxf4 $19)) 19... Qe4+ (19... Qg7 20. Bg3 (20. fxe6 $2 Qg2#) 20... Nxf5 21. Nxf5 exf5) 20. Rf3 {White is clearly winning.} Rg4 ({But not} 20... exf5 21. Bd3) 21. Bd3 Qxf4 22. Rxf4 Rxf4 23. fxe6 {White took control after the opening.   Weighted Error Value: White=0.03 (flawless) /Black=0.47.  Mistake:       	---       	Black=4      OK:         	White=4     	Black=5      Best:        	White=2     	---        Strong:       	White=2     	Black=1} 1-0

[Event "Coimbra Queima Fitas Open 2024"]
[Site "Coimbra"]
[Date "2024.04.25"]
[Round "1.2"]
[White "Almeida, Joao Afonso Alvim Ol"]
[Black "Veiga, Jose Francisco Reis "]
[Result "0-1"]
[ECO "C50"]
[WhiteElo "1689"]
[BlackElo "2378"]
[Annotator "TA"]
[PlyCount "68"]
[EventDate "2024.04.23"]
[EventType "swiss"]
[EventCountry "POR"]
[SourceTitle "playchess.com"]
[Source "ChessBase"]
[SourceQuality "1"]
[TimeControl "5400+30"]

{[%evp 17,68,-6,-11,-38,11,10,16,22,21,0,0,6,56,57,49,0,47,20,6,0,37,0,57,0,11,-1,-8,-19,0,-60,2,17,56,57,48,57,58,54,53,10,22,4,16,5,358,366,378,194,237,20,21,-958,-935]} 1. e4 {[%emt 0:00:45]} e5 {[%emt 0:01:43]} 2. Nf3 {[%emt 0:00:08]} Nc6 {[%emt 0:00:05]} 3. Bc4 {[%emt 0:00:06]} Bc5 {[%emt 0:00:04]} 4. O-O {[%emt 0:00:10]} Nf6 {[%emt 0:00:04]} 5. d3 {[%emt 0:00:25]} d6 {[%emt 0:00:05]} 6. c3 {[%emt 0:00:27]} a6 {[%emt 0:00:07]} 7. Be3 {[%emt 0:01:18]} Bxe3 {[%emt 0:06:39]} 8. fxe3 {[%emt 0:00:11]} O-O {[%emt 0:00:05]} 9. Nbd2 {[%emt 0:03:52]} Na5 {[%emt 0:03:04]} 10. Qe1 {[%emt 0:08:54]} d5 {[%emt 0:21:37]} (10... Nxc4 $15 11. Nxc4 b6) 11. exd5 {[%emt 0:01:02]} b5 {[%emt 0:00:08]} 12. Bb3 {[%emt 0:01:13] The position is equal.} Nxb3 {[%emt 0:00:25]} 13. Nxb3 {[%emt 0:00:45] aiming for e4.} Qxd5 {[%emt 0:00:11]} 14. d4 {[%emt 0:01:47]} e4 {[%emt 0:01:26]} ({Black should play} 14... exd4 $11 15. cxd4 Be6) 15. Ne5 $14 {[%emt 0:02:41]} Ne8 {[%emt 0:01:07]} 16. Qh4 {[%emt 0:05:11]} (16. Na5 $14) 16... Nd6 {[%emt 0:04:35]} (16... f6 $11) 17. Nc5 {[%emt 0:07:17]} f6 {[%emt 0:04:03][%cal Od6f5]} 18. Ng4 {[%emt 0:05:35]} Kh8 {[%emt 0:12:03]} 19. Ne5 {[%emt 0:03:23]} Bf5 {[%emt 0:04:25] Prevents Ng6+.} (19... Kg8 $1 $11) 20. Ng4 {[%emt 0:07:11]} (20. Ncd7 $1 $14) 20... a5 {[%emt 0:02:49][%cal Ba6a5,Ba5a4][%mdl 32]} 21. b3 {[%emt 0:02:49]} a4 {[%emt 0:01:42]} 22. Nf2 {[%emt 0:01:59]} Ra7 {[%emt 0:03:13]} 23. Nh3 {[%emt 0:03:24]} (23. c4 $11 bxc4 24. bxa4) 23... Kg8 {[%emt 0:05:04]} (23... axb3 $1 $15 24. axb3 Rxa1 25. Rxa1 Ra8) 24. Nf4 $11 {[%emt 0:01:57]} Qa8 {[%emt 0:00:10]} 25. bxa4 {[%emt 0:04:01]} bxa4 {[%emt 0:00:22]} 26. Rab1 {[%emt 0:01:29]} Qe8 {[%emt 0:02:32]} 27. Rb4 {[%emt 0:00:57]} Qf7 {[%emt 0:00:54]} 28. d5 {[%emt 0:02:09]} (28. Rxa4 g5 29. Qg3 Rxa4 30. Nxa4 Kh8 $17 (30... Qxa2 31. Nc5 $15)) 28... Ra5 {[%emt 0:03:39] Dodges c4} 29. Nfe6 {[%emt 0:00:27] A dynamic duo of knights.} (29. Nxa4 $2 Bd7 30. Ne6 Bxe6 (30... Bxa4 $2 31. Nxf8 Qxf8 32. Rfb1 $19) 31. dxe6 Qxe6 $19) 29... Rc8 {[%emt 0:03:21]} 30. c4 {[%emt 0:02:56]} (30. Rxa4 Rxa4 31. Nxa4 Bxe6 32. dxe6 Qxe6 $17) 30... c6 $2 {[%emt 0:01:08][%mdl 8192]} (30... Bxe6 $11 31. Nxe6 c5) 31. Qg3 $18 {[%emt 0:12:58]} (31. Rxa4 Rxa4 32. Nxa4 Bxe6 33. dxe6 Qxe6 $15) 31... Qe7 {[%emt 0:00:29]} 32. Rfb1 {[%emt 0:01:14]} (32. Rxa4 Rxa4 33. Nxa4 Bxe6 34. dxe6 Nxc4 $17) (32. Nxg7 $142 Bg6 33. Nce6 (33. Nxa4 $2 Kxg7 34. c5 Nf7 $19) 33... cxd5 34. c5) 32... Bxe6 {[%emt 0:07:11] [#]} 33. Nxe6 {[%emt 0:00:16]} (33. Rb7 $1 $18 {[%cal Rb7e7]} Nxb7 34. Rxb7) 33... cxd5 $11 {[%emt 0:01:22] [#]} 34. Rb7 $2 {[%emt 0:01:56][%mdl 8192]} Nxb7 {[%emt 0:00:28] Weighted Error Value: White=0.47/Black=0.39.  Loses game:     	White=1     	Black=1      Missed win:     	White=1     	---        Mistake:       	White=4     	Black=5      Inaccurate:     	White=3     	Black=2      OK:         	White=8     	Black=8      Best:        	White=1     	Black=3} 0-1

[Event "Coimbra Queima Fitas Open 2024"]
[Site "Coimbra"]
[Date "2024.04.25"]
[Round "1.3"]
[White "Serarols Mabras, Bernat"]
[Black "Oliveira, Fernando Alves"]
[Result "1-0"]
[ECO "A40"]
[WhiteElo "2361"]
[BlackElo "1689"]
[Annotator "TA"]
[PlyCount "77"]
[EventDate "2024.04.23"]
[EventType "swiss"]
[EventCountry "POR"]
[SourceTitle "playchess.com"]
[Source "ChessBase"]
[SourceQuality "1"]
[TimeControl "5400+30"]

{[%evp 9,77,-23,42,46,82,84,74,73,71,75,85,94,79,83,79,91,109,113,100,79,121,114,158,146,160,116,117,119,116,123,126,112,126,125,113,121,154,152,151,125,134,105,97,83,331,295,294,170,162,191,163,197,182,186,306,270,275,268,364,355,341,232,240,252,283,300,305,300,752,755]} 1. d4 {[%emt 0:01:57]} Nc6 {[%emt 0:01:09]} 2. c4 {[%emt 0:00:09]} e5 {[%emt 0:00:06]} 3. Nf3 {[%emt 0:01:56]} exd4 {[%emt 0:07:36]} 4. Nxd4 {[%emt 0:00:31]} Bb4+ {[%emt 0:00:25]} 5. Nc3 {[%emt 0:04:56]} Ne5 {[%emt 0:03:06]} (5... Bxc3+ $11 6. bxc3 Nf6) 6. Qb3 {[%emt 0:06:03]} Bxc3+ {[%emt 0:09:10]} 7. Qxc3 {[%emt 0:00:21]} d6 {[%emt 0:00:27]} 8. g3 {[%emt 0:03:42] White is better.} Nf6 {[%emt 0:01:50]} 9. Bg2 {[%emt 0:00:19]} O-O {[%emt 0:00:40]} 10. O-O {[%emt 0:00:17]} Re8 {[%emt 0:13:44]} 11. Rd1 {[%emt 0:08:37]} Ng6 {[%emt 0:10:00]} 12. b3 {[%emt 0:07:55]} Ne4 {[%emt 0:06:34]} 13. Qc2 {[%emt 0:01:24]} Qe7 {[%emt 0:08:07]} 14. Bb2 {[%emt 0:01:05]} Nc5 {[%emt 0:03:48] Prevents Rd3.} 15. Re1 {[%emt 0:02:18]} Ne6 {[%emt 0:06:41]} 16. Nf5 {[%emt 0:00:54][%cal Bd4f5,Bf5e3,Be3d5][%mdl 32]} Qd7 {[%emt 0:00:47]} 17. Qc3 {[%emt 0:08:04][%cal Rf5g7] White is much more active.} f6 {[%emt 0:02:36]} 18. e4 {[%emt 0:01:47]} Qf7 {[%emt 0:03:01]} 19. Rad1 {[%emt 0:00:33]} Nc5 {[%emt 0:01:17]} 20. Qc2 {[%emt 0:01:17]} Bd7 {[%emt 0:06:37]} 21. Ne3 {[%emt 0:03:14]} Rad8 {[%emt 0:02:44]} 22. Nd5 {[%emt 0:00:33]} Bg4 {[%emt 0:00:35]} 23. f3 {[%emt 0:01:03]} Be6 {[%emt 0:00:06]} 24. b4 {[%emt 0:02:32]} Na6 {[%emt 0:01:42]} 25. a3 {[%emt 0:00:14]} c6 {[%emt 0:00:02]} 26. Ne3 $36 {[%emt 0:00:15][%mdl 2048] White is really pushing.} d5 $2 {[%emt 0:00:41] This costs Black the game.} (26... Ne5 $16 {might work better.}) 27. cxd5 {[%emt 0:00:42]} cxd5 {[%emt 0:00:08] [#]} 28. exd5 {[%emt 0:00:38]} (28. f4 $142 $1 {[%cal Rf4f5] Strongly threatening f5.} d4 29. Rxd4 (29. Bxd4 Bb3 $14)) 28... Bxd5 $18 {[%emt 0:00:20]} 29. Nxd5 {[%emt 0:00:41]} Rxe1+ {[%emt 0:00:12]} 30. Rxe1 {[%emt 0:00:08]} Qxd5 {[%emt 0:00:13]} 31. f4 {[%emt 0:03:02]} Qb5 {[%emt 0:00:02]} (31... Qd2 {was necessary.} 32. Qxd2 Rxd2) 32. Qb3+ {[%emt 0:03:16]} Kf8 {[%emt 0:00:44] [#]} 33. Qe3 {[%emt 0:02:10]} Nc7 {[%emt 0:02:27]} 34. Qxa7 {[%emt 0:01:57]} Nd5 {[%emt 0:01:36]} 35. Qd4 {[%emt 0:01:51][%cal Oa3a4] And now a4! would win.} Nge7 {[%emt 0:01:00]} 36. Qe4 {[%emt 0:04:59] Prevents Nf5.} Kg8 {[%emt 0:04:59]} 37. Bf1 {[%emt 0:01:04] This pair of bishops is nice.} Qd7 {[%emt 0:00:30]} 38. Bc4 {[%emt 0:00:47]} Qc7 {[%emt 0:01:55]} (38... Kh8 39. Bb3 Qc6) 39. Qxe7 {[%emt 0:02:31] Weighted Error Value: White=0.16 (very precise) /Black=0.29 (precise) .  Loses game:     	---       	Black=1      Mistake:       	White=1     	Black=2      Inaccurate:     	White=1     	Black=4      OK:         	White=12    	Black=12     Best:        	White=2     	Black=3} 1-0

[Event "Coimbra Queima Fitas Open 2024"]
[Site "Coimbra"]
[Date "2024.04.25"]
[Round "1.4"]
[White "Neto, Dinis Fonseca"]
[Black "Martins, Bruno Andre Leite"]
[Result "0-1"]
[ECO "B15"]
[WhiteElo "1685"]
[BlackElo "2360"]
[Annotator "TA"]
[PlyCount "80"]
[EventDate "2024.04.23"]
[EventType "swiss"]
[EventCountry "POR"]
[SourceTitle "playchess.com"]
[Source "ChessBase"]
[SourceQuality "1"]
[TimeControl "5400+30"]

{[%evp 10,80,33,-8,22,15,10,7,14,8,23,19,27,6,0,0,11,3,38,24,34,0,0,0,4,-14,-14,-13,-15,-27,-19,-25,-22,-38,-33,-37,-19,-94,-105,-359,-347,-342,-205,-350,-335,-348,-351,-358,-332,-362,-314,-316,-313,-414,-387,-532,-545,-524,-516,-579,-567,-736,-749,-747,-755,-798,-798,-1264,-650,-29977,-29978,-29968,-29969]} 1. e4 {[%emt 0:00:03]} c6 {[%emt 0:03:13]} 2. Nc3 {[%emt 0:00:50]} d5 {[%emt 0:00:46]} 3. d4 {[%emt 0:00:09]} dxe4 {[%emt 0:00:14]} 4. Nxe4 {[%emt 0:00:10]} Nf6 {[%emt 0:00:08]} 5. Nxf6+ {[%emt 0:00:39]} exf6 {[%emt 0:00:02]} 6. Bf4 {[%emt 0:01:00]} Be7 {[%emt 0:01:02]} 7. Nf3 {[%emt 0:02:51]} O-O {[%emt 0:00:07]} 8. Bd3 {[%emt 0:02:04]} Re8 {[%emt 0:01:48] The position is equal.} 9. O-O {[%emt 0:00:33]} Nd7 {[%emt 0:00:07][%cal Bb8d7,Bd7f8,Bf8g6][%mdl 32]} 10. c3 {[%emt 0:02:31]} Nf8 {[%emt 0:00:10]} 11. h3 {[%emt 0:01:15]} Ng6 {[%emt 0:00:42]} 12. Bg3 {[%emt 0:01:15]} Be6 {[%emt 0:01:13]} 13. Qc2 {[%emt 0:01:22]} Qa5 {[%emt 0:09:18]} 14. a4 {[%emt 0:05:36]} Rad8 {[%emt 0:02:13]} 15. Rfd1 {[%emt 0:06:08]} Bd6 {[%emt 0:02:34]} 16. Bxd6 {[%emt 0:00:54]} Rxd6 {[%emt 0:00:02]} 17. b4 {[%emt 0:12:00]} Qh5 {[%emt 0:01:45]} 18. Bxg6 {[%emt 0:07:27]} hxg6 {[%emt 0:00:41]} 19. Re1 {[%emt 0:01:20]} Rdd8 {[%emt 0:03:55][%cal Oe6h3]} 20. Nh2 {[%emt 0:03:27]} Qg5 {[%emt 0:02:41]} 21. Qd3 {[%emt 0:09:35]} Bf5 {[%emt 0:01:00]} 22. Qf3 {[%emt 0:01:19]} Qd2 {[%emt 0:00:43]} 23. Rxe8+ {[%emt 0:05:24]} (23. Rec1 $11) 23... Rxe8 $17 {[%emt 0:00:03]} 24. Rd1 {[%emt 0:00:23][%mdl 8192] [#] Now White is beyond hope.} (24. Ng4 $17) 24... Re1+ $19 {[%emt 0:02:55]} 25. Rxe1 {[%emt 0:00:27]} Qxe1+ {[%emt 0:00:03][%mdl 4096] Endgame. KQB-KQN} 26. Nf1 {[%emt 0:00:13]} Qb1 {[%emt 0:00:07]} 27. g4 {[%emt 0:03:04]} Bd3 {[%emt 0:00:21]} 28. Qg2 {[%emt 0:00:07]} Qc1 {[%emt 0:00:55]} 29. f3 {[%emt 0:01:01]} Qxc3 {[%emt 0:02:26]} 30. Qd2 {[%emt 0:02:26]} Qxd4+ {[%emt 0:01:13]} 31. Ne3 {[%emt 0:00:25]} b6 {[%emt 0:03:11]} 32. Kg2 {[%emt 0:01:38]} c5 {[%emt 0:01:24]} 33. bxc5 {[%emt 0:00:18]} bxc5 {[%emt 0:00:02][%cal Oc5c4]} 34. Qc1 {[%emt 0:00:53]} c4 {[%emt 0:01:01]} 35. Nd1 {[%emt 0:00:45]} Be2 {[%emt 0:00:14]} 36. Nc3 {[%emt 0:00:40]} Qd3 {[%emt 0:00:30]} 37. Nxe2 {[%emt 0:00:38]} Qxe2+ {[%emt 0:00:02]} 38. Kg3 {[%emt 0:00:05]} Qd3 {[%emt 0:00:48]} 39. Qe1 {[%emt 0:01:05]} c3 {[%emt 0:00:18]} 40. Qe8+ {[%emt 0:00:07]} Kh7 {[%emt 0:00:05] Weighted Error Value: White=0.67/Black=0.20 (precise) .  Loses game:     	White=1     	---        Mistake:       	White=1     	---        Inaccurate:     	White=4     	Black=1      OK:         	White=9     	Black=11     Best:        	White=2     	Black=3} 0-1

[Event "Coimbra Queima Fitas Open 2024"]
[Site "Coimbra"]
[Date "2024.04.25"]
[Round "1.5"]
[White "Martin Duque, Jesus"]
[Black "Camacho, Filipa Fernandes Bri"]
[Result "1-0"]
[ECO "A06"]
[WhiteElo "2336"]
[BlackElo "1684"]
[Annotator "TA"]
[PlyCount "73"]
[EventDate "2024.04.23"]
[EventType "swiss"]
[EventCountry "POR"]
[SourceTitle "playchess.com"]
[Source "ChessBase"]
[SourceQuality "1"]
[TimeControl "5400+30"]

{[%evp 20,73,25,32,73,72,131,125,276,279,255,223,227,177,178,149,301,291,313,290,489,484,621,641,621,637,797,839,851,818,842,836,711,689,676,675,832,823,1163,1153,1229,1054,1162,1026,29983,29984,29984,29985,29991,29992,29992,29993,29995,29995,29996,29997]} 1. Nf3 {[%emt 0:01:08]} d5 {[%emt 0:01:36]} 2. b3 {[%emt 0:00:06]} Nf6 {[%emt 0:00:35]} 3. Bb2 {[%emt 0:00:05]} e6 {[%emt 0:00:21]} 4. e3 {[%emt 0:00:26]} c5 {[%emt 0:00:12]} 5. c4 {[%emt 0:00:06]} b6 {[%emt 0:00:40]} 6. g3 {[%emt 0:02:37]} Bb7 {[%emt 0:00:58]} 7. Bg2 {[%emt 0:00:08]} Be7 {[%emt 0:02:35]} 8. O-O {[%emt 0:00:17]} O-O {[%emt 0:00:02]} 9. Nc3 {[%emt 0:00:18]} Nc6 {[%emt 0:04:16]} 10. cxd5 {[%emt 0:00:11]} exd5 {[%emt 0:00:54]} 11. d4 {[%emt 0:00:14]} Ba6 {[%emt 0:10:38]} 12. Re1 {[%emt 0:01:00]} c4 {[%emt 0:00:05]} (12... Ne4 $142) 13. Ne5 $16 {[%emt 0:00:44]} Qd6 {[%emt 0:05:04]} (13... Na5 $16 {was worth a try.}) 14. bxc4 $18 {[%emt 0:02:42]} Bxc4 {[%emt 0:02:27]} 15. Nxc4 {[%emt 0:00:28]} dxc4 {[%emt 0:00:29]} 16. Qa4 {[%emt 0:00:23][%csl LRc4,LRc6]} Rac8 {[%emt 0:04:03]} 17. Qxc4 {[%emt 0:01:39]} Nb4 $2 {[%emt 0:04:59]} (17... Na5 $16 18. Qd3 Nc4) 18. Qe2 {[%emt 0:00:17]} Qd7 {[%emt 0:01:24]} 19. Rac1 {[%emt 0:04:56]} Qf5 $2 {[%emt 0:05:38]} (19... Nfd5 {might work better.} 20. Nxd5 Nxd5) 20. e4 {[%emt 0:01:01]} Qa5 {[%emt 0:00:43]} 21. a3 {[%emt 0:01:13]} Nc6 {[%emt 0:04:16]} 22. Nd5 {[%emt 0:00:44]} Rfd8 {[%emt 0:06:18] [#]} 23. Rxc6 $1 {[%emt 0:00:25][%mdl 512]} Nxd5 {[%emt 0:00:27]} 24. exd5 {[%emt 0:00:12] Rxc8 would now be deadly.} Bf8 {[%emt 0:02:34]} 25. Rec1 {[%emt 0:01:41]} Re8 {[%emt 0:01:21]} 26. Qd3 {[%emt 0:01:44]} Rcd8 {[%emt 0:03:57]} 27. h4 {[%emt 0:02:04]} Re1+ {[%emt 0:03:03]} 28. Kh2 {[%emt 0:05:13] Black must now prevent Bc3.} Rxc1 {[%emt 0:05:56]} 29. Bxc1 {[%emt 0:00:21]} Qe1 {[%emt 0:01:08]} 30. Qf3 {[%emt 0:00:57]} Be7 {[%emt 0:03:07]} 31. Rc7 {[%emt 0:01:36]} a6 {[%emt 0:02:41]} 32. Bg5 {[%emt 0:01:14] White mates.} f6 {[%emt 0:00:39] [#]} 33. d6 $1 {[%emt 0:00:10]} Bf8 {[%emt 0:02:14] [#]} (33... Rxd6 34. Be3) 34. Bxf6 $1 {[%emt 0:01:06]} Qe8 {[%emt 0:04:44]} 35. Bxd8 {[%emt 0:00:29]} Qxd8 {[%emt 0:00:21]} 36. Qf7+ {[%emt 0:00:04]} Kh8 {[%emt 0:00:12]} 37. Bd5 {[%emt 0:00:04] Black got outplayed after the opening.   Weighted Error Value: White=0.09 (flawless) /Black=0.77.  Mistake:       	---       	Black=4      OK:         	White=6     	Black=2      Best:        	White=1     	---} 1-0

[Event "Coimbra Queima Fitas Open 2024"]
[Site "Coimbra"]
[Date "2024.04.25"]
[Round "1.6"]
[White "Correia, Pedro Mourao Soares"]
[Black "Grimm, Daniel"]
[Result "0-1"]
[ECO "B02"]
[WhiteElo "1684"]
[BlackElo "2296"]
[Annotator "TA"]
[PlyCount "50"]
[EventDate "2024.04.23"]
[EventType "swiss"]
[EventCountry "POR"]
[SourceTitle "playchess.com"]
[Source "ChessBase"]
[SourceQuality "1"]
[TimeControl "5400+30"]

{[%evp 16,50,39,30,41,29,23,28,12,5,21,-29,-10,0,0,-4,-6,0,0,-14,-14,-45,-40,-39,-42,-73,-57,-80,-58,-285,-272,-276,-273,-491,-422,-406,-370]} 1. e4 {[%emt 0:00:04]} Nf6 {[%emt 0:00:27]} 2. Nc3 {[%emt 0:00:17]} d6 {[%emt 0:01:21]} 3. d4 {[%emt 0:02:35]} Nbd7 {[%emt 0:00:27]} 4. Nf3 {[%emt 0:04:42]} e5 {[%emt 0:00:33]} 5. Bc4 {[%emt 0:05:04]} Be7 {[%emt 0:05:56]} 6. O-O {[%emt 0:03:25]} O-O {[%emt 0:02:40]} 7. Qe2 {[%emt 0:02:45]} c6 {[%emt 0:03:34]} 8. a4 {[%emt 0:02:11][%cal Ba2a4,Ba4a5][%mdl 32]} Qc7 {[%emt 0:03:19]} 9. a5 {[%emt 0:02:22]} Rb8 {[%emt 0:05:28]} 10. Be3 {[%emt 0:09:14]} exd4 {[%emt 0:06:49]} 11. Bxd4 {[%emt 0:03:48]} b5 {[%emt 0:04:06] White has an edge.} 12. axb6 {[%emt 0:05:12]} axb6 {[%emt 0:00:14]} 13. Ra2 {[%emt 0:08:45]} (13. e5 $142 dxe5 14. Nxe5) 13... Ne5 {[%emt 0:06:39]} 14. Nxe5 {[%emt 0:10:22]} dxe5 {[%emt 0:00:13]} 15. Be3 {[%emt 0:00:47]} Nd7 {[%emt 0:07:48]} 16. Rfa1 {[%emt 0:03:07]} b5 {[%emt 0:07:21]} 17. Bb3 {[%emt 0:08:32]} Nc5 {[%emt 0:03:00]} 18. Bxc5 {[%emt 0:06:05]} Bxc5 {[%emt 0:00:15]} 19. Nd1 {[%emt 0:04:23]} Qe7 {[%emt 0:02:15]} 20. c3 {[%emt 0:05:06]} Qf6 {[%emt 0:02:55]} (20... Qh4 {keeps more tension.} 21. Qe1 Rd8 22. Ra8 Rxa8 23. Rxa8 g6) 21. Kh1 {[%emt 0:04:23]} g6 {[%emt 0:00:59]} 22. Ra8 $2 {[%emt 0:01:04] [#] White does not recover from this.} ({White should play} 22. f3 $15) 22... Bg4 $1 $19 {[%emt 0:04:38][%mdl 512]} 23. Qxg4 {[%emt 0:04:11]} Rxa8 {[%emt 0:00:07]} 24. Rc1 {[%emt 0:00:49]} (24. Rxa8 {was the only chance.} Rxa8 25. Qe2) 24... Rfd8 {[%emt 0:03:20]} 25. Qe2 {[%emt 0:01:23]} Qf4 {Weighted Error Value: White=0.53/Black=0.13 (very precise) .  Loses game:     	White=1     	---        Mistake:       	White=2     	---        Inaccurate:     	White=2     	---        OK:         	White=3     	Black=5      Best:        	White=1     	---        Brilliant:      	---       	Black=1} 0-1

[Event "Coimbra Queima Fitas Open 2024"]
[Site "Coimbra"]
[Date "2024.04.25"]
[Round "1.7"]
[White "Iglesias Ferreira, Andres Agustin"]
[Black "Marques, Goncalo Costa Campos"]
[Result "1-0"]
[ECO "C85"]
[WhiteElo "2261"]
[BlackElo "1683"]
[Annotator "TA"]
[PlyCount "59"]
[EventDate "2024.04.23"]
[EventType "swiss"]
[EventCountry "POR"]
[SourceTitle "playchess.com"]
[Source "ChessBase"]
[SourceQuality "1"]
[TimeControl "5400+30"]

{[%evp 14,59,25,19,16,22,41,40,48,46,56,42,51,33,32,20,28,0,51,7,79,62,114,119,108,98,106,19,470,455,472,470,505,518,516,502,685,512,966,947,925,580,583,582,574,218,216,220]} 1. e4 {[%emt 0:00:01]} e5 {[%emt 0:00:07]} 2. Nf3 {[%emt 0:00:08]} Nc6 {[%emt 0:00:07]} 3. Bb5 {[%emt 0:00:11]} a6 {[%emt 0:00:09]} 4. Ba4 {[%emt 0:01:05]} Nf6 {[%emt 0:00:06]} 5. O-O {[%emt 0:00:13]} Be7 {[%emt 0:00:06]} 6. Bxc6 {[%emt 0:02:31]} dxc6 {[%emt 0:02:07]} 7. d3 {[%emt 0:00:11]} Qd6 {[%emt 0:04:16]} 8. b3 {[%emt 0:05:22]} Bg4 {[%emt 0:05:49]} 9. Nbd2 {[%emt 0:01:23] Black should prevent Nc4.} Bxf3 {[%emt 0:07:55]} 10. Qxf3 {[%emt 0:00:37]} b5 {[%emt 0:14:41] White is slightly better.} 11. Bb2 {[%emt 0:01:53]} O-O {[%emt 0:07:30]} 12. Qg3 {[%emt 0:06:23]} Nd7 {[%emt 0:01:06]} 13. Nf3 {[%emt 0:00:16][%cal Rf3e5]} Bf6 {[%emt 0:01:57]} 14. Rfe1 {[%emt 0:08:44]} Rfe8 {[%emt 0:06:40]} 15. Rad1 {[%emt 0:03:41]} Qc5 {[%emt 0:10:42]} (15... c5 $11) 16. c3 {[%emt 0:03:13]} Nf8 {[%emt 0:03:09]} (16... a5 $11 {keeps the balance.}) 17. d4 $16 {[%emt 0:00:18]} exd4 {[%emt 0:00:09]} (17... Qe7 $14) 18. cxd4 {[%emt 0:00:43]} Qb6 {[%emt 0:00:12]} 19. e5 $36 {[%emt 0:00:23][%cal Be4e5,Be5d6][%mdl 2080] Keeping Black busy.} Be7 {[%emt 0:00:11]} 20. d5 {[%emt 0:02:13] Prevents Ne6. White is more active.} (20. Nh4 $16) 20... Ng6 $2 {[%emt 0:07:50][%mdl 8192] [#] This move loses the game for Black.} (20... cxd5 $11 {and Black has nothing to worry.} 21. e6 f6 (21... fxe6 22. Qxg7#) (21... Nxe6 $2 22. Rxe6 Bf8 23. Rxb6 $18)) 21. d6 $18 {[%emt 0:02:15]} cxd6 {[%emt 0:00:44]} 22. exd6 {[%emt 0:00:11]} Bf8 {[%emt 0:00:12]} 23. Rxe8 {[%emt 0:00:31]} Rxe8 {[%emt 0:00:05]} 24. h4 {[%emt 0:00:24]} Re2 {[%emt 0:01:33]} 25. h5 {[%emt 0:02:57]} Rxb2 {[%emt 0:02:28]} (25... Nf4 $142 26. Bxg7 (26. Bd4 c5 $18) 26... Nxh5 (26... Bxg7 $2 {too greedy.} 27. d7 $18) 27. Bd4+ Nxg3 28. Bxb6 Bxd6 29. Rxd6 Ne4) 26. hxg6 {[%emt 0:00:12]} hxg6 {[%emt 0:00:03]} 27. Qh4 {[%emt 0:02:19] [#] Hoping for d7.} f6 {[%emt 0:02:04]} 28. d7 {[%emt 0:00:20]} Be7 {[%emt 0:02:30]} 29. Qd4 $2 {[%emt 0:02:22]} (29. Re1 Kf7 30. Nd4) 29... Qxd4 {[%emt 0:00:33]} 30. Nxd4 {Weighted Error Value: White=0.77/Black=0.56.  Loses game:     	---       	Black=1      Mistake:       	White=2     	Black=4      Inaccurate:     	White=2     	Black=1      OK:         	White=4     	Black=8      Best:        	White=1     	Black=1} 1-0